bitfinex-derivatives/quotes_ETHF0:USTF0_20240920
["timestamp","ask_amount","ask_price","bid_price","bid_amount"]
[1726835236528,0.3771,2557.0,2556.9,3.05]
[1726835236732,0.76812,2557.0,2556.9,3.05]
[1726835237039,0.39105,2556.8,2556.7,3.44106]
[1726835237734,0.79985,2556.8,2556.7,3.44106]
[1726835238138,0.79985,2556.8,2556.7,3.05]
[1726835240045,3.97592,2557.0,2556.8,0.39104]
[1726835240336,0.76812,2557.0,2556.8,3.44104]
[1726835243744,0.76812,2557.0,2556.8,3.05]
[1726835243745,0.76813,2557.0,2556.8,3.05]
[1726835244540,0.76813,2557.0,2556.9,0.39103]
[1726835244842,0.76813,2557.0,2556.8,3.44104]
[1726835245446,0.3771,2557.0,2556.9,0.39103]
[1726835245646,0.79981,2557.1,2556.9,0.39102]
[1726835246337,0.7998,2557.1,2557.0,3.05]
[1726835246537,0.39098,2557.3,2557.1,0.391]
[1726835246739,0.39096,2557.4,2557.3,0.39097]
[1726835246945,0.39096,2557.4,2557.2,3.05]
[1726835246946,0.39097,2557.3,2557.2,3.05]
[1726835247439,0.39097,2557.4,2557.2,3.05]
[1726835247641,1.73877,2557.5,2557.2,3.44098]
[1726835248437,0.39096,2557.4,2557.2,3.44098]
[1726835248641,1.73877,2557.5,2557.2,3.44098]
[1726835249447,0.39097,2557.3,2557.2,3.44098]
[1726835249638,0.39097,2557.3,2557.0,0.3768]
[1726835249639,0.39097,2557.3,2557.1,0.39099]
[1726835250241,0.39096,2557.4,2557.1,3.2078]
[1726835250437,0.39096,2557.4,2557.2,0.39098]
[1726835250637,0.7614,2557.5,2557.3,0.39097]
[1726835251039,0.39096,2557.4,2557.3,0.39097]
[1726835251239,0.7614,2557.5,2557.2,0.39098]
[1726835251446,0.39096,2557.4,2557.2,0.39098]
[1726835251747,0.39097,2557.4,2557.1,3.2078]
[1726835252451,0.39097,2557.4,2557.2,0.39099]
[1726835252746,0.7614,2557.5,2557.1,3.2078]
[1726835252953,0.39096,2557.4,2557.2,0.39098]
[1726835253343,0.39096,2557.4,2557.1,3.2078]
[1726835253540,3.2078,2557.6,2557.2,4.02748]
[1726835253745,4.007,2557.6,2557.4,0.39095]
[1726835253946,4.39794,2557.6,2557.4,0.39095]
[1726835254255,0.39094,2557.5,2557.3,0.77246]
[1726835254448,0.39096,2557.4,2557.3,0.3815]
[1726835254849,1.77653,2557.6,2557.3,0.77247]
[1726835255055,1.77653,2557.6,2557.3,0.77246]
[1726835255056,0.39095,2557.5,2557.3,0.77246]
[1726835255644,0.97738,2557.5,2557.2,3.44098]
[1726835255855,0.39097,2557.4,2557.2,3.44098]
[1726835256448,0.97742,2557.4,2557.1,6.6478]
[1726835256747,0.39099,2557.2,2557.1,3.2078]
[1726835259154,0.39099,2557.2,2557.0,3.44101]
[1726835259847,0.39099,2557.2,2557.1,0.391]
[1726835260048,0.39099,2557.2,2557.0,3.44101]
[1726835260243,0.97741,2557.4,2557.1,0.391]
[1726835260449,0.39099,2557.2,2557.0,3.44101]
[1726835260647,0.39098,2557.3,2557.0,3.05]
[1726835260960,0.39098,2557.3,2557.1,0.391]
[1726835261347,0.39097,2557.4,2557.2,0.39098]
[1726835261651,0.39098,2557.3,2557.2,0.39099]
[1726835261854,0.39098,2557.3,2557.0,3.05]
[1726835262156,0.39099,2557.2,2557.0,3.05]
[1726835262352,0.9774,2557.4,2557.1,0.391]
[1726835262353,0.39099,2557.3,2557.1,0.391]
[1726835262649,0.39099,2557.3,2557.2,0.39099]
[1726835263248,0.39099,2557.2,2557.1,0.39099]
[1726835263450,0.39099,2557.2,2557.1,0.391]
[1726835264452,0.391,2557.2,2557.1,0.391]
[1726835265953,0.391,2557.2,2557.0,3.44101]
[1726835266151,3.2078,2557.5,2557.0,3.05]
[1726835266453,0.391,2557.2,2557.1,0.391]
[1726835268153,3.2078,2557.5,2557.0,3.05]
[1726835268154,0.39096,2557.4,2557.0,3.05]
[1726835268359,5.59662005,2557.8,2557.0,3.05]
[1726835268360,0.39091,2557.8,2557.3,3.05]
[1726835268658,0.3929,2557.9,2557.7,3.05]
[1726835268849,0.3909,2557.8,2557.7,3.05]
[1726835269555,0.39092,2557.7,2557.6,3.05]
[1726835269949,0.3929,2557.9,2557.6,3.05]
[1726835270148,0.78379,2557.9,2557.7,0.39091]
[1726835270353,0.3909,2557.8,2557.6,3.44092]
[1726835270549,0.78379,2557.9,2557.7,0.39091]
[1726835270753,0.78379,2557.9,2557.6,3.44092]
[1726835270754,0.3909,2557.8,2557.6,3.44092]
[1726835271848,0.3929,2557.9,2557.6,3.44092]
[1726835272049,0.39091,2557.7,2557.6,3.44093]
[1726835272255,0.39091,2557.8,2557.6,3.44093]
[1726835272959,0.39091,2557.7,2557.6,3.05]
[1726835273259,0.39094,2557.6,2557.4,4.61626]
[1726835273564,0.39094,2557.5,2557.4,0.4049]
[1726835273861,0.39097,2557.4,2557.2,3.44098]
[1726835274064,0.39097,2557.3,2557.2,3.05]
[1726835274254,0.39097,2557.3,2557.1,3.9792]
[1726835274447,0.39099,2557.2,2557.1,3.5882]
[1726835276156,0.39099,2557.2,2557.1,3.2078]
[1726835276658,0.39099,2557.2,2557.0,3.05]
[1726835276659,0.7994,2557.2,2557.0,3.05]
[1726835277056,0.39098,2557.3,2557.1,0.391]
[1726835277253,0.39098,2557.3,2557.2,3.05]
[1726835280162,0.3909,2557.4,2557.2,3.05]
[1726835280464,0.39097,2557.3,2557.2,3.05]
[1726835281160,0.78187,2557.4,2557.2,3.44099]
[1726835281663,0.3909,2557.4,2557.2,3.44099]
[1726835281863,0.97731,2557.7,2557.3,3.9104]
[1726835282168,0.97733,2557.6,2557.3,0.7783]
[1726835282358,0.39096,2557.4,2557.3,0.7783]
[1726835282756,0.39096,2557.4,2557.3,4.6887]
[1726835283673,0.39096,2557.4,2557.3,3.9104]
[1726835284167,0.39096,2557.4,2557.3,4.30137]
[1726835284671,0.39096,2557.4,2557.3,3.9104]
[1726835285362,0.39096,2557.4,2557.3,4.30137]
[1726835285762,0.39096,2557.4,2557.3,3.9104]
[1726835285961,0.39096,2557.4,2557.2,3.44098]
[1726835286361,0.39096,2557.4,2557.3,0.39097]
[1726835286556,0.39096,2557.4,2557.2,3.05]
[1726835286557,0.97733,2557.6,2557.2,3.44098]
[1726835286960,0.39097,2557.4,2557.2,3.44098]
[1726835287371,0.39097,2557.3,2557.2,3.44098]
[1726835287867,0.39097,2557.4,2557.3,0.39097]
[1726835288170,0.39097,2557.4,2557.2,3.44098]
[1726835288368,0.39097,2557.4,2557.3,0.39097]
[1726835288571,0.39097,2557.4,2557.2,3.44098]
[1726835288765,0.39096,2557.4,2557.3,0.39097]
[1726835289170,0.39096,2557.4,2557.3,3.9104]
[1726835289364,0.39096,2557.4,2557.3,0.39097]
[1726835289674,0.39096,2557.4,2557.3,3.9104]
[1726835290375,4.121,2557.9,2557.3,7.1182]
[1726835290565,0.3909,2557.8,2557.7,3.05]
[1726835290980,0.3909,2557.8,2557.7,3.44091]
[1726835291170,1.36815,2557.8,2557.7,3.05]
[1726835291671,1.36826,2557.6,2557.5,3.05]
[1726835292065,1.36826,2557.6,2557.4,0.39095]
[1726835292066,0.97733,2557.6,2557.3,3.05]
[1726835292268,0.9774,2557.4,2557.1,3.05]
[1726835292471,0.39099,2557.2,2557.1,3.05]
[1726835296389,0.97742,2557.4,2557.1,3.05]
[1726835296593,1.1839,2557.5,2557.1,3.05]
[1726835296594,0.39098,2557.3,2557.1,3.441]
[1726835296790,0.39099,2557.3,2557.1,3.05]
[1726835297388,1.1839,2557.5,2557.2,0.39098]
[1726835297593,1.1839,2557.5,2557.4,3.05]
[1726835297792,1.57485,2557.5,2557.4,3.05]
[1726835298684,0.39097,2557.3,2557.2,3.4526]
[1726835300586,0.39097,2557.3,2557.2,3.05]
[1726835301397,3.9104,2557.3,2556.9,3.2078]
[1726835301597,0.39108,2556.6,2556.5,6.2578]
[1726835301788,0.39108,2556.6,2556.4,0.4102]
[1726835301789,0.39111,2556.4,2556.3,3.05]
[1726835302291,0.7843,2556.5,2556.3,3.05]
[1726835302492,0.39111,2556.4,2556.3,3.05]
[1726835302696,0.3932,2556.5,2556.1,7.9568]
[1726835302697,0.39114,2556.2,2556.1,6.2578]
[1726835302897,0.3912,2555.9,2555.8,3.05]
[1726835303591,0.7844,2555.9,2555.8,3.05]
[1726835304091,1.76238,2555.9,2555.8,3.05]
[1726835304297,0.7844,2555.9,2555.8,3.05]
[1726835304997,0.3932,2555.9,2555.8,3.4412]
[1726835305301,0.396,2556.1,2556.0,0.39117]
[1726835305598,0.396,2556.1,2555.8,6.9628]
[1726835305599,0.39113,2556.3,2556.1,0.39115]
[1726835305808,0.39114,2556.2,2555.9,7.0189]
[1726835306098,0.39114,2556.2,2556.1,3.05]
[1726835306302,0.39116,2556.1,2556.0,3.05]
[1726835306905,0.97788,2556.2,2555.8,3.05]
[1726835307196,0.39119,2555.9,2555.8,3.05]
[1726835309095,0.77128,2556.0,2555.8,3.4412]
[1726835309296,0.39119,2555.9,2555.8,3.05]
[1726835310007,0.3801,2556.0,2555.8,3.05]
[1726835310008,0.77128,2556.0,2555.8,3.44119]
[1726835310216,0.77129,2556.0,2555.8,3.4412]
[1726835310706,0.3801,2556.0,2555.8,3.05]
[1726835310910,0.77128,2556.0,2555.8,3.4412]
[1726835312198,0.39119,2555.9,2555.8,3.05]
[1726835312508,0.77128,2556.0,2555.8,3.4412]
[1726835313099,0.39119,2555.9,2555.8,3.4412]
[1726835313397,0.39119,2555.9,2555.8,3.05]
[1726835313601,0.79909,2555.9,2555.7,0.39121]
[1726835313903,0.7991,2555.9,2555.7,0.39121]
[1726835314309,0.3912,2555.8,2555.7,0.39121]
[1726835314510,0.7991,2555.9,2555.7,0.39121]
[1726835315408,0.4079,2555.9,2555.6,6.2578]
[1726835315598,0.4079,2555.9,2555.3,0.4035]
[1726835315599,0.39125,2555.5,2555.3,3.05]
[1726835315796,0.39125,2555.5,2555.4,0.39126]
[1726835316008,0.39125,2555.5,2555.2,7.7982]
[1726835316009,0.39128,2555.3,2555.2,3.2078]
[1726835316201,0.79917,2555.4,2555.2,0.39129]
[1726835316513,0.39128,2555.3,2555.2,0.3913]
[1726835317211,0.4079,2555.4,2555.0,0.3841]
[1726835317411,0.39128,2555.3,2555.1,0.3913]
[1726835317716,0.3913,2555.2,2555.0,0.3841]
[1726835318009,0.3913,2555.2,2555.0,0.77542]
[1726835318413,0.3913,2555.2,2555.1,0.39131]
[1726835318712,0.39133,2555.0,2554.9,3.05]
[1726835319005,0.97832,2555.0,2554.5,3.2078]
[1726835319204,0.97836,2554.9,2554.4,3.4455]
[1726835319508,0.97836,2554.9,2554.3,0.39142]
[1726835319509,0.3914,2554.5,2554.3,0.39142]
[1726835319709,0.3914,2554.6,2554.2,6.2578]
[1726835320008,0.3914,2554.6,2554.4,0.39141]
[1726835320214,0.3914,2554.6,2554.4,3.44141]
[1726835320410,0.3914,2554.6,2554.4,3.05]
[1726835320603,0.3914,2554.6,2554.4,3.44141]
[1726835320802,3.6177,2554.8,2554.5,0.39139]
[1726835320803,0.39138,2554.7,2554.5,0.39139]
[1726835321011,0.4099,2554.8,2554.5,0.39139]
[1726835321312,0.4099,2554.8,2554.4,3.05]
[1726835321511,0.39135,2554.9,2554.6,3.05]
[1726835321713,0.39135,2554.9,2554.8,3.05]
[1726835322005,0.39133,2555.0,2554.8,3.05]
[1726835322209,0.8107,2555.1,2554.8,3.44135]
[1726835322404,0.39134,2554.9,2554.8,3.05]
[1726835322598,1.789,2555.1,2554.8,0.39135]
[1726835322804,0.39134,2554.9,2554.8,0.39135]
[1726835323710,1.789,2555.1,2554.7,0.39136]
[1726835323711,0.39136,2554.8,2554.7,0.39136]
[1726835323901,0.39135,2554.9,2554.8,0.39135]
[1726835324306,0.39136,2554.8,2554.7,0.39136]
[1726835327610,0.39136,2554.9,2554.8,0.39135]
[1726835327816,0.39137,2554.8,2554.7,0.39136]
[1726835329620,0.39137,2554.7,2554.6,3.44138]
[1726835329810,0.79047,2554.7,2554.6,0.39139]
[1726835330913,0.3991,2554.7,2554.6,0.39139]
[1726835331120,0.39135,2554.9,2554.8,0.39134]
[1726835331312,0.77835,2554.9,2554.8,0.39134]
[1726835331619,0.39137,2554.8,2554.7,0.39136]
[1726835333917,0.77835,2554.9,2554.8,0.39136]
[1726835335714,0.387,2554.9,2554.8,0.39136]
[1726835335918,0.4099,2555.1,2555.0,0.39133]
[1726835336124,0.80121,2555.1,2555.0,0.39133]
[1726835336427,4.71481,2555.1,2555.0,0.39133]
[1726835337216,0.39134,2555.0,2554.9,0.39133]
[1726835337420,0.39136,2554.9,2554.8,0.39135]
[1726835342019,0.39133,2555.0,2554.9,0.39133]
[1726835342223,0.80122,2555.1,2555.0,0.39133]
[1726835342421,0.4099,2555.1,2555.0,0.39133]
[1726835342631,0.4099,2555.1,2555.0,1.36965]
[1726835343220,0.4099,2555.1,2555.0,0.39133]
[1726835345030,0.4099,2555.1,2555.0,0.77653]
[1726835347227,4.51226,2555.5,2555.4,0.39126]
[1726835347529,0.7765,2555.5,2555.4,0.39126]
[1726835348125,1.16775,2555.5,2555.4,0.39126]
[1726835349532,0.7765,2555.5,2555.4,0.39126]
[1726835349727,0.3885,2555.5,2555.4,1.36943]
[1726835350233,0.3885,2555.5,2555.4,1.75313]
[1726835350825,0.3885,2555.5,2555.4,0.77496]
[1726835352938,0.3885,2555.5,2555.4,1.75313]
[1726835353731,0.3885,2555.5,2555.4,0.77496]
[1726835355632,0.3885,2555.5,2555.4,1.75313]
[1726835356033,0.77992,2555.7,2555.6,0.39123]
[1726835356233,1.18122,2555.7,2555.6,0.39123]
[1726835357627,0.79,2555.7,2555.6,0.39123]
[1726835358736,1.18122,2555.7,2555.6,0.39123]
[1726835359333,1.18122,2555.7,2555.6,1.36932]
[1726835359334,0.4013,2555.7,2555.6,1.36932]
[1726835359530,0.4013,2555.7,2555.6,0.39123]
[1726835359734,0.4013,2555.7,2555.6,1.36932]
[1726835361332,0.4013,2555.7,2555.6,0.39123]
[1726835364440,0.7722,2555.8,2555.7,0.39122]
[1726835364937,0.381,2555.8,2555.7,1.36927]
[1726835365248,3.2078,2556.5,2556.3,0.39113]
[1726835365545,0.77611,2556.4,2556.3,0.39113]
[1726835365742,1.16491,2556.4,2556.3,0.39113]
[1726835367445,0.7738,2556.4,2556.3,0.39113]
[1726835367739,1.16491,2556.4,2556.3,0.39113]
[1726835368142,0.39116,2556.2,2556.1,0.39114]
[1726835368337,8.7136,2556.4,2556.3,0.39113]
[1726835368338,4.21493,2556.4,2556.3,0.39113]
[1726835368537,1.16493,2556.4,2556.3,0.39113]
[1726835368843,0.7738,2556.4,2556.3,0.39113]
[1726835369947,1.16491,2556.4,2556.3,0.39113]
[1726835370538,0.7738,2556.4,2556.3,0.39113]
[1726835371745,1.16491,2556.4,2556.3,0.39113]
[1726835371940,0.7738,2556.4,2556.3,0.39113]
[1726835372246,1.16491,2556.4,2556.3,0.39113]
[1726835372446,0.7738,2556.4,2556.3,0.39113]
[1726835372743,1.16491,2556.4,2556.3,0.39113]
[1726835373538,0.7738,2556.4,2556.3,0.39113]
[1726835374045,1.16491,2556.4,2556.3,0.39113]
[1726835380942,0.7738,2556.4,2556.3,0.39113]
[1726835381555,0.39111,2556.5,2556.4,0.3911]
[1726835381743,1.18441,2556.5,2556.4,0.3911]
[1726835388251,0.7933,2556.5,2556.4,0.3911]
[1726835388450,1.1844,2556.5,2556.4,0.3911]
[1726835389553,0.7933,2556.5,2556.4,0.3911]
[1726835391345,1.1844,2556.5,2556.4,0.3911]
[1726835399654,0.7933,2556.5,2556.4,0.3911]
[1726835400251,6.1153,2556.5,2556.3,0.39111]
[1726835400455,2.2033,2556.5,2556.4,0.39111]
[1726835400657,0.39113,2556.4,2556.3,0.39112]
[1726835400858,1.18441,2556.5,2556.4,0.39111]
[1726835401455,5.09641,2556.5,2556.4,0.39111]
[1726835402450,0.7933,2556.5,2556.4,0.39111]
[1726835402651,1.1844,2556.5,2556.4,0.39111]
[1726835402859,0.39111,2556.4,2556.3,0.39112]
[1726835403067,0.7933,2556.5,2556.3,0.39112]
[1726835403262,0.3912,2555.9,2555.7,3.5842]
[1726835403465,0.3912,2555.8,2555.7,3.2078]
[1726835403770,0.39122,2555.7,2555.5,0.39124]
[1726835404067,1.80122,2555.7,2555.4,0.39125]
[1726835404265,1.41,2555.6,2555.3,3.59908]
[1726835404454,1.41,2555.6,2555.3,3.2078]
[1726835404964,1.80124,2555.6,2555.3,3.2078]
[1726835405761,1.80124,2555.6,2555.3,3.59908]
[1726835405962,1.1622,2555.8,2555.3,4.6178]
[1726835406156,1.1622,2555.8,2555.6,1.80122]
[1726835406358,1.1622,2555.8,2555.7,0.39122]
[1726835406657,1.1622,2555.8,2555.6,1.80122]
[1726835406860,0.3811,2555.8,2555.7,0.39122]
[1726835407054,3.2078,2556.2,2555.7,0.39122]
[1726835407055,0.7983,2556.1,2555.7,0.39121]
[1726835407266,1.41,2555.9,2555.5,1.41]
[1726835407461,1.8012,2555.9,2555.5,1.80125]
[1726835407658,1.41,2555.6,2555.3,3.2078]
[1726835407864,0.39131,2555.1,2554.9,3.2078]
[1726835408167,0.7686,2555.0,2554.7,0.3826]
[1726835408560,0.7686,2555.0,2554.9,0.39134]
[1726835417777,0.39129,2555.3,2555.1,0.3913]
[1726835418087,0.3878,2555.4,2555.3,0.39128]
[1726835418278,3.2078,2555.8,2555.3,0.39128]
[1726835418279,0.3738,2555.6,2555.5,0.39125]
[1726835419181,0.76503,2555.6,2555.4,0.39126]
[1726835419378,0.76503,2555.6,2555.5,0.39125]
[1726835419379,0.3738,2555.6,2555.5,0.39125]
[1726835419579,0.3738,2555.6,2555.3,0.4045]
[1726835419878,0.3738,2555.6,2555.5,0.39125]
[1726835420479,0.76504,2555.6,2555.4,0.39125]
[1726835420683,0.3738,2555.6,2555.5,0.39125]
[1726835421584,0.3878,2555.9,2555.5,4.18592]
[1726835421788,0.77899,2555.9,2555.5,3.2078]
[1726835421984,0.3764,2555.8,2555.7,0.3912]
[1726835422583,0.77899,2555.9,2555.6,3.05]
[1726835422584,0.3878,2555.9,2555.6,3.05]
[1726835422787,0.3863,2556.1,2556.0,0.39117]
[1726835423088,0.3863,2556.1,2555.8,6.2578]
[1726835423278,0.3863,2556.1,2556.0,0.39117]
[1726835423477,0.3863,2556.1,2555.7,1.36104]
[1726835423478,0.77746,2556.1,2555.9,0.39118]
[1726835423678,0.77746,2556.1,2555.7,0.383]
[1726835423679,0.39117,2556.0,2555.7,0.383]
[1726835423877,0.77747,2556.1,2555.9,0.39118]
[1726835424179,3.4363,2556.1,2555.5,3.2078]
[1726835424483,0.39121,2555.8,2555.5,3.2078]
[1726835424684,0.39121,2555.8,2555.6,0.39123]
[1726835425684,0.4015,2555.7,2555.6,0.39123]
[1726835427888,0.39123,2555.6,2555.5,3.2078]
[1726835428191,0.39127,2555.4,2555.2,0.77428]
[1726835428579,0.39125,2555.6,2555.4,0.39126]
[1726835428780,3.2078,2555.9,2555.5,3.05]
[1726835428997,0.39123,2555.7,2555.5,3.44124]
[1726835429179,0.39122,2555.7,2555.5,3.44124]
[1726835429884,0.78221,2555.8,2555.6,0.39123]
[1726835430079,0.39122,2555.7,2555.6,0.4046]
[1726835430689,0.39122,2555.7,2555.6,0.79583]
[1726835430889,0.39122,2555.7,2555.6,0.4046]
[1726835431086,0.39122,2555.7,2555.6,0.79583]
[1726835431286,0.39123,2555.6,2555.5,3.44125]
[1726835431487,0.80013,2555.6,2555.4,3.2078]
[1726835431689,0.80013,2555.6,2555.5,0.39125]
[1726835432191,0.39125,2555.5,2555.4,3.2078]
[1726835432383,0.39125,2555.5,2554.8,3.2078]
[1726835432384,0.97819,2555.4,2554.8,3.2078]
[1726835432582,0.39133,2555.0,2554.8,3.59915]
[1726835432789,0.4034,2554.9,2554.8,3.59915]
[1726835433989,0.374,2555.1,2555.0,0.39133]
[1726835435287,0.374,2555.1,2554.9,0.76413]
[1726835435989,0.76531,2555.1,2554.9,0.76413]
[1726835436498,0.374,2555.1,2555.0,0.39133]
[1726835436895,0.76531,2555.1,2554.9,0.76413]
[1726835437094,0.374,2555.1,2555.0,0.39133]
[1726835437300,0.374,2555.1,2554.9,0.3728]
[1726835437598,0.76531,2555.1,2554.9,0.76413]
[1726835437798,0.374,2555.1,2555.0,0.39133]
[1726835438099,0.374,2555.1,2554.9,0.76413]
[1726835438100,0.76531,2555.1,2554.9,0.76413]
[1726835438590,0.76531,2555.1,2555.0,0.39133]
[1726835438794,0.374,2555.1,2555.0,0.39133]
[1726835438992,0.76531,2555.1,2555.0,0.39133]
[1726835439391,0.76531,2555.1,2554.9,0.76413]
[1726835439692,0.39133,2555.0,2554.9,0.76413]
[1726835439896,0.374,2555.1,2554.9,0.39134]
[1726835440096,0.39134,2554.9,2554.8,3.59915]
[1726835440297,0.39136,2554.8,2554.6,0.39137]
[1726835440493,0.79406,2554.8,2554.7,0.39137]
[1726835440696,0.79406,2554.8,2554.6,0.39138]
[1726835441001,0.79406,2554.8,2554.7,0.39137]
[1726835441599,0.4027,2554.8,2554.7,0.39137]
[1726835442296,0.76531,2555.1,2554.9,0.39133]
[1726835442493,0.76531,2555.1,2554.9,0.39134]
[1726835442696,0.374,2555.1,2554.8,6.636]
[1726835442891,0.374,2555.1,2555.0,0.39133]
[1726835443099,0.374,2555.1,2554.8,6.636]
[1726835443100,0.76531,2555.1,2554.9,0.39133]
[1726835443298,0.76531,2555.1,2554.9,0.39134]
[1726835443801,0.374,2555.1,2555.0,0.39133]
[1726835445198,0.3807,2555.5,2555.4,0.39126]
[1726835445399,0.7924,2555.5,2555.4,0.39126]
[1726835446104,1.18365,2555.5,2555.3,0.39127]
[1726835446399,1.18365,2555.5,2555.2,6.2578]
[1726835446704,0.4117,2555.5,2555.4,0.39126]
[1726835447003,0.39122,2555.8,2555.4,3.05]
[1726835447204,0.39122,2555.8,2555.6,0.39123]
[1726835447393,3.6123,2555.9,2555.6,3.05]
[1726835447605,0.386,2556.0,2555.9,0.39119]
[1726835448705,0.39116,2556.1,2555.9,0.39119]
[1726835450301,0.39116,2556.1,2555.7,3.05]
[1726835450498,1.38234,2556.3,2556.0,3.05]
[1726835450499,0.4045,2556.3,2556.0,3.05]
[1726835450799,0.4045,2556.3,2556.2,0.39114]
[1726835451899,0.3825,2556.5,2556.2,10.1698]
[1726835452098,0.3825,2556.5,2556.3,0.39111]
[1726835452302,0.3776,2556.6,2556.5,0.3911]
[1726835452501,0.3825,2557.0,2556.9,0.39103]
[1726835452700,0.76859,2557.3,2556.9,3.05]
[1726835452900,1.15108,2557.3,2556.9,3.44103]
[1726835453094,0.39099,2557.2,2556.9,3.44103]
[1726835453298,1.15108,2557.3,2556.9,3.44103]
[1726835453501,0.7601,2557.3,2557.0,0.39101]
[1726835453697,0.7601,2557.3,2556.9,3.05]
[1726835453894,0.391,2557.2,2556.9,3.44103]
[1726835454098,1.15108,2557.3,2556.9,3.44103]
[1726835455103,0.7601,2557.3,2557.0,0.39102]
[1726835455403,1.15108,2557.3,2557.0,0.39102]
[1726835455608,1.15108,2557.3,2556.9,3.44102]
[1726835456113,1.15108,2557.3,2557.0,0.39102]
[1726835457110,3.2078,2557.5,2557.1,3.05]
[1726835457499,3.59875,2557.5,2557.3,0.39097]
[1726835457706,3.2078,2557.5,2557.3,0.39097]
[1726835458003,0.39094,2557.5,2557.3,0.39096]
[1726835458207,0.39095,2557.5,2557.2,0.39098]
[1726835458408,0.39096,2557.4,2556.9,3.4399]
[1726835458616,0.39098,2557.3,2557.1,0.391]
[1726835459210,0.39087,2558.0,2557.2,6.2578]
[1726835459410,0.7536,2558.1,2558.0,0.39087]
[1726835459605,0.375,2558.1,2558.0,0.39087]
[1726835459906,7.3288,2558.9,2558.5,0.39078]
[1726835460109,0.39077,2558.7,2558.4,0.39079]
[1726835460301,0.39077,2558.7,2558.2,3.05]
[1726835460302,6.6328,2558.9,2558.2,0.39083]
[1726835460502,0.3908,2558.5,2558.3,0.39082]
[1726835460703,0.97691,2558.7,2558.1,3.05]
[1726835460906,0.3908,2558.5,2558.3,0.39081]
[1726835461105,0.39085,2558.2,2558.0,3.59866]
[1726835461304,0.97702,2558.4,2558.0,3.2078]
[1726835461512,0.97702,2558.4,2557.8,3.44089]
[1726835461710,0.39083,2558.3,2557.9,0.39088]
[1726835461913,0.39084,2558.2,2557.8,3.44089]
[1726835462209,0.97702,2558.4,2557.8,3.44089]
[1726835462511,0.39085,2558.2,2557.8,3.44089]
[1726835462714,3.05,2558.5,2557.7,3.9927]
[1726835462715,0.39087,2558.1,2557.7,3.9927]
[1726835462907,0.39087,2558.1,2557.5,4.30094]
[1726835462908,4.02714,2558.1,2557.5,4.30094]
[1726835463109,0.39088,2557.9,2557.5,4.30094]
[1726835463609,0.3909,2557.8,2557.5,3.91]
[1726835463909,0.3909,2557.8,2557.4,15.13025]
[1726835463910,0.39091,2557.8,2557.4,15.13025]
[1726835464115,0.39089,2557.9,2557.5,0.39093]
[1726835464503,0.3909,2557.8,2557.4,10.93225]
[1726835464709,0.39089,2557.9,2557.4,10.93225]
[1726835465003,0.3909,2557.8,2557.4,10.93225]
[1726835465210,0.3909,2557.8,2557.4,10.5413]
[1726835465424,0.39092,2557.7,2557.4,6.6313]
[1726835465710,1.39019,2558.0,2557.4,6.6313]
[1726835465913,0.39092,2557.7,2557.4,6.6313]
[1726835466109,1.76979,2558.0,2557.4,7.02226]
[1726835466414,1.76979,2558.0,2557.4,6.6313]
[1726835466615,0.39091,2557.8,2557.4,6.6313]
[1726835467204,1.76979,2558.0,2557.4,6.2578]
[1726835467205,4.97759,2558.0,2557.4,6.2578]
[1726835467405,4.97759,2558.0,2557.2,0.3968]
[1726835467406,4.43651,2557.7,2557.2,0.3968]
[1726835467614,0.39098,2557.3,2557.0,0.3861]
[1726835467809,0.97741,2557.4,2556.8,3.2078]
[1726835468108,0.97744,2557.3,2556.8,3.2078]
[1726835468316,0.39104,2556.9,2556.6,0.3861]
[1726835468620,0.39108,2556.6,2556.5,3.2078]
[1726835468909,8.01943,2556.8,2556.2,3.2078]
[1726835469106,0.97767,2556.7,2556.2,6.2578]
[1726835469302,3.834,2556.8,2556.2,6.2578]
[1726835469503,8.01945,2556.8,2556.2,6.2578]
[1726835469702,0.39108,2556.6,2556.2,6.2578]
[1726835470712,7.0418,2556.8,2556.2,6.2578]
[1726835470915,0.97769,2556.7,2556.2,6.2578]
[1726835471107,0.39115,2556.2,2556.0,4.198]
[1726835471309,0.39115,2556.2,2555.5,8.1968]
[1726835471310,0.39119,2555.9,2555.5,8.1968]
[1726835471510,3.2078,2555.9,2555.5,3.9988]
[1726835471813,0.97794,2556.0,2555.5,3.9988]
[1726835471814,3.2078,2556.0,2555.5,3.9988]
[1726835472008,3.2078,2556.0,2555.5,3.2078]
[1726835472211,3.05,2555.9,2555.2,3.05]
[1726835472607,0.39125,2555.5,2555.2,3.05]
[1726835472808,3.2078,2556.0,2554.7,0.4036]
[1726835472809,3.05,2555.3,2554.8,3.2078]
[1726835473111,3.05,2554.9,2554.4,0.3772]
[1726835473304,3.2078,2554.8,2554.2,3.05]
[1726835473509,3.05,2554.6,2554.0,3.2078]
[1726835473703,0.39138,2554.7,2554.1,3.05]
[1726835473914,0.39139,2554.6,2554.1,3.05]
[1726835474120,0.39138,2554.7,2554.1,3.44146]
[1726835474314,0.39138,2554.7,2554.3,3.2078]
[1726835474814,3.59913,2555.0,2554.5,3.05]